{"text_format":"1","workbook":"xlsx","n_sheets":4,"sheets":["Degree Plan","Recommendations","Instructions","Lists"],"not_rendered":{"charts":0,"images":0,"macros":1,"external_links":0,"defined_names":30,"comments":0,"pivot_tables":0},"unopened":[],"bounds":{"document_bytes":16777216,"sheet_cells":100000,"rows_first":2000,"rows_last":500,"rows_between":2000,"halvings":0,"cell_chars":16384,"cell_head_chars":4096},"cells_cut":0,"cells_raw":0,"read":"whole","date_system":"1900"}

{"sheet":"Degree Plan","index":0,"n_rows":83,"n_cols":44,"rows_kept":83,"cut":false,"hidden":false,"merged":[[66,14,66,16],[59,9,59,12],[6,9,6,12],[7,9,7,12],[25,9,25,12],[26,9,26,12],[42,9,42,12],[15,9,15,12],[16,9,16,12],[33,9,33,12],[34,9,34,12],[0,1,0,4],[50,9,50,12],[0,7,0,16],[0,5,0,6],[2,1,2,2],[1,6,1,7],[1,8,1,16],[2,8,2,16],[24,1,24,6],[39,1,39,2],[3,1,3,6],[6,13,7,13],[1,2,1,4],[7,1,7,3],[2,6,2,7],[16,1,16,3],[7,22,7,29],[7,31,7,38],[6,22,6,38],[6,17,6,19],[59,13,60,13],[25,14,25,16],[25,13,26,13],[6,14,6,16],[42,14,42,16],[59,14,59,16],[15,14,15,16],[33,14,33,16],[50,14,50,16],[73,14,75,16],[56,14,56,16],[42,13,43,13],[26,1,26,3],[58,1,58,6],[43,1,43,3],[43,9,43,12],[41,1,41,6],[34,1,34,3],[48,1,48,2],[69,14,69,16],[69,9,69,12],[70,9,70,12],[60,9,60,12],[51,9,51,12],[63,14,64,16]]}
[null,"Bachelor of Science in Construction Engineering and Management",null,null,null,"2019-20",null,{"$f":"_xlfn.CONCAT(\"Expires: 08/01/\",LEFT(F1,4)+7)","v":"Expires: 08/01/2026"},null,null,null,null,null,null,null,null,null,null,null,null,null,null,null,null,null,null,null,null,null,null,null,null,null,null,null,null,null,null,null,null,null,null,null,32]
[null,"Name",null,null,null,"ID",null,null,"If you have questions",null,null,null,null,null,null,null,null,{"$f":"COLUMN()","v":18},{"$f":"COLUMN()","v":19},{"$f":"COLUMN()","v":20},{"$f":"COLUMN()","v":21},{"$f":"COLUMN()","v":22},{"$f":"COLUMN()","v":23},{"$f":"COLUMN()","v":24},{"$f":"COLUMN()","v":25},{"$f":"COLUMN()","v":26},{"$f":"COLUMN()","v":27},{"$f":"COLUMN()","v":28},{"$f":"COLUMN()","v":29},{"$f":"COLUMN()","v":30},{"$f":"COLUMN()","v":31},{"$f":"COLUMN()","v":32},{"$f":"COLUMN()","v":33},{"$f":"COLUMN()","v":34},{"$f":"COLUMN()","v":35},{"$f":"COLUMN()","v":36},{"$f":"COLUMN()","v":37},{"$f":"COLUMN()","v":38},{"$f":"COLUMN()","v":39},{"$f":"COLUMN()","v":40},{"$f":"COLUMN()","v":41},{"$f":"COLUMN()","v":42},{"$f":"COLUMN()","v":43}]
[null,"Registering",null,"Fall","Credits to Recommend",12,null,null,"civilengineering@utep.edu"]
[null,"FRESHMAN YEAR",null,null,null,null,null,null,null,null,null,null,null,null,null,null,null,null,null,null,null,null,1,2,3,4,5,6,7,8,null,1,2,3,4,5,6,7,8,null,1]
[null,null,null,"Calculus Ready Status","Not Ready to Take Calculus I","Note: Courses for calculus readiness are not part of the degree"]
[]
[null,"1st Semester",null,null,null,null,null,null,null,"Critical",null,null,null,"Prereq Flag","Avail",null,null,"Satisfies",null,null,null,null,"Requirements",null,null,null,null,null,null,null,null,null,null,null,null,null,null,null,null,null,null,null,"Min"]
[null,"Course",null,null,"Prerequisites","Hours","Grade","Status","✓","Path",null,null,null,null,"F","S","Su","Prereq","Credits","All",null,null,"Prerequisites",null,null,null,null,null,null,null,null,"Or Prerequisites",null,null,null,null,null,null,null,null,"Coreq",null,"Credits"]
[1,"CE","1301+","Civil Engineering Fundamentals","MATH1411 (coreq)",3,null,"Not Ready",null,"◎",null,null,null,null,null,null,null,{"$f":"CalculusReady=\"Ready to Take Calculus I\"","v":false},{"$f":"TotalCreditsTaken>=AQ9","v":true},{"$f":"AND(R9,S9)","v":false},{"$f":"SUM(F9:F14)","v":16},null,null,null,null,null,null,null,null,null,null,null,null,null,null,null,null,null,null,null,{"$f":"ROW(A11)","v":11}]
[2,"UNV","1301+","Foundations of Engineering",null,3,null,"Can Take","✓",null,null,null,null,null,null,null,null,null,true,true]
[3,"MATH","1411+","Calculus I",null,4,null,"Not Ready",null,"◎",null,null,null,null,null,null,null,{"$f":"CalculusReady=\"Ready to Take Calculus I\"","v":false},true,false]
[4,"GEOL","1211+","Principles of Earth Sciences","GEOL1111 (coreq)",2,null,"Can Take","✓",null,null,null,null,null,null,null,null,null,true,true,null,null,null,null,null,null,null,null,null,null,null,null,null,null,null,null,null,null,null,null,{"$f":"ROW(A13)","v":13}]
[5,"GEOL","1111+","Principles of Earth Sciences Lab","GEOL1211 (coreq)",1,null,"Can Take","✓",null,null,null,null,null,null,null,null,null,true,true,null,null,null,null,null,null,null,null,null,null,null,null,null,null,null,null,null,null,null,null,{"$f":"ROW(A12)","v":12}]
[6,"RWS","1301+","Rhetoric and Composition I",null,3,null,"Can Take","✓",null,null,null,null,null,null,null,null,null,true,true]
[]
[null,"2nd  Semester",null,null,null,null,null,null,null,"Critical",null,null,null,"Prereq","Avail"]
[null,"Course",null,null,"Prerequisites","Hours","Grade","Status","✓","Path",null,null,null,"Flag","F","S","Su"]
[7,"CE","2315+","Statics","CE1301 and MATH1411",3,null,"Not Ready",null,"◎",null,null,null,null,null,null,null,{"$f":" AND(G9<>\"\",G11<>\"\")","v":false},{"$f":"TotalCreditsTaken>=AQ18","v":true},{"$f":"AND(R18,S18)","v":false},{"$f":"SUM(F18:F23)","v":16},null,{"$f":"ROW(A9)","v":9},{"$f":"ROW(A11)","v":11}]
[8,"MATH","1312+","Calculus II","MATH1411",3,null,"Not Ready",null,null,null,null,null,null,null,null,null,{"$f":"G11<>\"\"","v":false},true,false,null,null,{"$f":"ROW(A11)","v":11}]
[9,"CHEM","1305+","General Chemistry I","CHEM1105 (coreq)",3,null,"Not Ready",null,null,null,null,null,null,null,null,null,{"$f":"OR(CalculusReady=\"Ready to Take Calculus I\",CalculusReady=\"Will Take Precalculus Next Period\")","v":false},true,false,null,null,null,null,null,null,null,null,null,null,null,null,null,null,null,null,null,null,null,null,{"$f":"ROW(A21)","v":21}]
[10,"CHEM","1105+","Laboratory for General Chemistry I","CHEM1305 (coreq)",1,null,"Not Ready",null,null,null,null,null,null,null,null,null,{"$f":"OR(CalculusReady=\"Ready to Take Calculus I\",CalculusReady=\"Will Take Precalculus Next Period\")","v":false},true,false,null,null,null,null,null,null,null,null,null,null,null,null,null,null,null,null,null,null,null,null,{"$f":"ROW(A20)","v":20}]
[11,"CE","1313+","Engineering Measurements",null,3,null,"Not Ready",null,null,null,null,null,null,null,null,null,{"$f":"CalculusReady=\"Ready to Take Calculus I\"","v":false},true,false]
[12,"RWS","1302+","Rhetoric and Composition II","RWS1301",3,null,"Not Ready",null,null,null,null,null,null,null,null,null,{"$f":"G14<>\"\"","v":false},true,false,null,null,{"$f":"ROW(A14)","v":14}]
[]
[null,"SOPHOMORE YEAR"]
[null,"1st Semester",null,null,null,null,null,null,null,"Critical",null,null,null,"Prereq Flag","Avail"]
[null,"Course",null,null,"Prerequisites","Hours","Grade","Status","✓","Path",null,null,null,null,"F","S","Su"]
[13,"CE","2334+","Mechanics of Materials","CE2315",3,null,"Not Ready",null,"◎",null,null,null,null,null,null,null,{"$f":"G18<>\"\"","v":false},{"$f":"TotalCreditsTaken>=AQ28","v":true},{"$f":"AND(R28,S28)","v":false},{"$f":"SUM(F28:F32)","v":15},null,{"$f":"ROW(A18)","v":18}]
[14,"MATH","2313+","Calculus III","MATH1312",3,null,"Not Ready",null,null,null,null,null,null,null,null,null,{"$f":"G19<>\"\"","v":false},{"$f":"TotalCreditsTaken>=AQ29","v":true},{"$f":"AND(R29,S29)","v":false},null,null,{"$f":"ROW(A19)","v":19}]
[15,"CE","2335+","Geological Engineering (GEOL 3321)",null,3,null,"Not Ready",null,"◎",null,null,null,null,null,null,null,null,{"$f":"TotalCreditsTaken>=AQ30","v":false},{"$f":"AND(R30,S30)","v":false},null,null,null,null,null,null,null,null,null,null,null,null,null,null,null,null,null,null,null,null,null,null,21]
[16,"ACCT","2301+","Principles of Accounting","MATH1411",3,null,"Not Ready",null,null,null,null,null,null,null,null,null,{"$f":"G11<>\"\"","v":false},{"$f":"TotalCreditsTaken>=AQ31","v":true},{"$f":"AND(R31,S31)","v":false},null,null,{"$f":"ROW(A11)","v":11}]
[17,"HIST","1301+","History of US to 1865",null,3,null,"Can Take","✓",null,null,null,null,null,null,null,null,null,{"$f":"TotalCreditsTaken>=AQ32","v":true},{"$f":"AND(R32,S32)","v":true}]
[]
[null,"2nd  Semester",null,null,null,null,null,null,null,"Critical",null,null,null,"Prereq","Avail"]
[null,"Course",null,null,"Prerequisites","Hours","Grade","Status","✓","Path",null,null,null,"Flag","F","S","Su"]
[18,"CE","2343+","Structural Analysis","CE2334",3,null,"Not Ready",null,null,null,null,null,null,null,null,null,{"$f":"G28<>\"\"","v":false},{"$f":"TotalCreditsTaken>=AQ36","v":true},{"$f":"AND(R36,S36)","v":false},{"$f":"SUM(F36:F40)","v":15},null,{"$f":"ROW(A28)","v":28}]
[19,"CE","2375+","Introduction to Fluid Mechanics","CE2315",3,null,"Not Ready",null,null,null,null,null,null,null,null,null,{"$f":"G18<>\"\"","v":false},{"$f":"TotalCreditsTaken>=AQ37","v":true},{"$f":"AND(R37,S37)","v":false},null,null,{"$f":"ROW(A18)","v":18}]
[20,"HIST","1302+","History of the US since 1865","HIST1301",3,null,"Not Ready",null,null,null,null,null,null,null,null,null,{"$f":"G32<>\"\"","v":false},{"$f":"TotalCreditsTaken>=AQ38","v":true},{"$f":"AND(R38,S38)","v":false},null,null,{"$f":"ROW(A32)","v":32}]
[21,"CE","2373+","Engineering Prob. and Stat. Models (IE 3373+)","MATH2313",3,null,"Not Ready",null,null,null,null,null,null,null,null,null,{"$f":"G29<>\"\"","v":false},{"$f":"TotalCreditsTaken>=AQ39","v":true},{"$f":"AND(R39,S39)","v":false},null,null,{"$f":"ROW(A29)","v":29}]
[22,null,null,"Creative Arts Elective+","See electives prerequisites",3,null,"Can Take",null,null,null,null,null,null,null,null,null,null,{"$f":"TotalCreditsTaken>=AQ40","v":true},{"$f":"AND(R40,S40)","v":true}]
[]
[null,"JUNIOR YEAR"]
[null,"1st Semester",null,null,null,null,null,null,null,"Critical",null,null,null,"Prereq Flag","Avail"]
[null,"Course",null,null,"Prerequisites","Hours","Grade","Status","✓","Path",null,null,null,null,"F","S","Su"]
[23,"CE",3336,"Civil Engineering Materials","CE2334",3,null,"Not Ready",null,"◎",null,null,null,null,null,null,null,{"$f":"G28<>\"\"","v":false},{"$f":"TotalCreditsTaken>=AQ45","v":false},{"$f":"AND(R45,S45)","v":false},{"$f":"SUM(F45:F49)","v":15},null,{"$f":"ROW(A28)","v":28},null,null,null,null,null,null,null,null,null,null,null,null,null,null,null,null,null,null,null,47]
[24,"BLAW",3301,"Legal Environment of Business",null,3,null,"Not Ready",null,null,null,null,null,null,null,null,null,null,{"$f":"TotalCreditsTaken>=AQ46","v":false},{"$f":"AND(R46,S46)","v":false},null,null,null,null,null,null,null,null,null,null,null,null,null,null,null,null,null,null,null,null,null,null,47]
[25,"CE","2326+","Economics for Engineers and Scientists",null,3,null,"Not Ready",null,null,null,null,null,null,null,null,null,null,{"$f":"TotalCreditsTaken>=AQ47","v":false},{"$f":"AND(R47,S47)","v":false},null,null,null,null,null,null,null,null,null,null,null,null,null,null,null,null,null,null,null,null,null,null,32]
[26,"POLS","2310+","Introduction to Politics",null,3,null,"Can Take",null,null,null,null,null,null,null,null,null,null,{"$f":"TotalCreditsTaken>=AQ48","v":true},{"$f":"AND(R48,S48)","v":true}]
[27,null,null,"Language Philosophy and Culture Elective+","See electives prerequisites",3,null,"Can Take",null,null,null,null,null,null,null,null,null,null,{"$f":"TotalCreditsTaken>=AQ49","v":true},{"$f":"AND(R49,S49)","v":true}]
[]
[null,"2nd  Semester",null,null,null,null,null,null,null,"Critical",null,null,null,"Prereq","Avail"]
[null,"Course",null,null,"Prerequisites","Hours","Grade","Status","✓","Path",null,null,null,"Flag","F","S","Su"]
[28,"CE",3348,"Geotechnical Engineering","CE2335 and CE3336",3,null,"Not Ready",null,"◎",null,null,null,null,null,null,null,{"$f":"AND(G45<>\"\",G30<>\"\")","v":false},{"$f":"TotalCreditsTaken>=AQ53","v":false},{"$f":"AND(R53,S53)","v":false},{"$f":"SUM(F53:F57)","v":15},null,{"$f":"ROW(A30)","v":30},{"$f":"ROW(A45)","v":45},null,null,null,null,null,null,null,null,null,null,null,null,null,null,null,null,null,null,57]
[29,"COMM","1302+","Business and Professional Communication","RWS1301",3,null,"Not Ready",null,null,null,null,null,null,null,null,null,{"$f":"G14<>\"\"","v":false},{"$f":"TotalCreditsTaken>=AQ54","v":true},{"$f":"AND(R54,S54)","v":false},null,null,{"$f":"ROW(A14)","v":14}]
[30,"FIN",3310,"Business Finance","ACC1301",3,null,"Not Ready",null,null,null,null,null,null,null,null,null,null,{"$f":"TotalCreditsTaken>=AQ55","v":false},{"$f":"AND(R55,S55)","v":false},null,null,null,null,null,null,null,null,null,null,null,null,null,null,null,null,null,null,null,null,null,null,57]
[31,"POLS","2311+","American Government and Politics","POLS2310",3,null,"Not Ready",null,null,null,null,null,null,null,null,null,{"$f":"G48<>\"\"","v":false},{"$f":"TotalCreditsTaken>=AQ56","v":true},{"$f":"AND(R56,S56)","v":false},null,null,{"$f":"ROW(A48)","v":48}]
[32,"CE",3334,"Construction Management (Online)",null,3,null,"Not Ready",null,null,null,null,null,null,"Link",null,null,null,{"$f":"TotalCreditsTaken>=AQ57","v":false},{"$f":"AND(R57,S57)","v":false},null,null,null,null,null,null,null,null,null,null,null,null,null,null,null,null,null,null,null,null,null,null,57]
[]
[null,"SENIOR YEAR"]
[null,"1st Semester",null,null,null,null,null,null,null,"Critical",null,null,null,"Prereq Flag","Avail"]
[null,"Course",null,null,"Prerequisites","Hours","Grade","Status","✓","Path",null,null,null,null,"F","S","Su"]
[33,"CE",4188,"Senior Design I",null,1,null,"Not Ready",null,null,null,null,null,null,null,null,null,null,{"$f":"TotalCreditsTaken>=AQ62","v":false},{"$f":"AND(R62,S62)","v":false},{"$f":"SUM(F63:F68)","v":13},null,null,null,null,null,null,null,null,null,null,null,null,null,null,null,null,null,null,null,null,null,69]
[34,"CE",4339,"Geostructural Design","CE3348",3,null,"Not Ready",null,"◎",null,null,null,null,null,null,null,{"$f":"G53<>\"\"","v":false},{"$f":"TotalCreditsTaken>=AQ63","v":false},{"$f":"AND(R63,S63)","v":false},null,null,{"$f":"ROW(A53)","v":53},null,null,null,null,null,null,null,null,null,null,null,null,null,null,null,null,null,null,null,69]
[35,"CE",4354,"Electrical & Mechanical Construction (Online)",null,3,null,"Not Ready",null,null,null,null,null,null,"Link",null,null,null,{"$f":"TotalCreditsTaken>=AQ64","v":false},{"$f":"AND(R64,S64)","v":false},null,null,null,null,null,null,null,null,null,null,null,null,null,null,null,null,null,null,null,null,null,null,69]
[36,"CE",4358,"Construction Methods & Materials (Online)",null,3,null,"Not Ready",null,null,null,null,null,null,null,null,null,null,{"$f":"TotalCreditsTaken>=AQ65","v":false},false,null,null,null,null,null,null,null,null,null,null,null,null,null,null,null,null,null,null,null,null,null,null,69]
[37,"CE",4158,"Construction Methods & Materials Lab",null,1,null,"Not Ready",null,null,null,null,null,null,null,null,null,null,{"$f":"TotalCreditsTaken>=AQ66","v":false},false,null,null,null,null,null,null,null,null,null,null,null,null,null,null,null,null,null,null,null,null,null,null,69]
[38,"CE",4382,"Construction Cost Analysis & Bidding (Online)",null,3,null,"Not Ready",null,null,null,null,null,null,"Link",null,null,null,false,false,null,null,null,null,null,null,null,null,null,null,null,null,null,null,null,null,null,null,null,null,null,null,69]
[]
[]
[null,"2nd  Semester",null,null,null,null,null,null,null,"Critical",null,null,null,"Prereq","Avail"]
[null,"Course",null,null,"Prerequisites","Hours","Grade","Status","✓","Path",null,null,null,"Flag","F","S","Su"]
[39,"CE",4288,"Senior Design II","CE4188",2,null,"Not Ready",null,null,null,null,null,null,null,null,null,{"$f":"G62<>\"\"","v":false},{"$f":"TotalCreditsTaken>=AQ72","v":false},{"$f":"AND(R72,S72)","v":false},{"$f":"SUM(F73:F76)","v":12},null,{"$f":"ROW(A62)","v":62},null,null,null,null,null,null,null,null,null,null,null,null,null,null,null,null,null,null,null,79]
[40,"CE",4385,"Construction Internship",null,3,null,"Not Ready",null,null,null,null,null,null,null,null,null,null,{"$f":"TotalCreditsTaken>=AQ73","v":false},{"$f":"AND(R73,S73)","v":false},null,null,null,null,null,null,null,null,null,null,null,null,null,null,null,null,null,null,null,null,null,null,79]
[41,"CE",4386,"Construction Law & Ethics (Online)",null,3,null,"Not Ready",null,null,null,null,null,null,"Link",null,null,null,{"$f":"TotalCreditsTaken>=AQ74","v":false},{"$f":"AND(R74,S74)","v":false},null,null,null,null,null,null,null,null,null,null,null,null,null,null,null,null,null,null,null,null,null,null,79]
[42,"CE",4387,"Construction Scheduling (Online)","CE4382",3,null,"Not Ready",null,null,null,null,null,null,null,null,null,{"$f":"G67<>\"\"","v":false},{"$f":"TotalCreditsTaken>=AQ75","v":false},{"$f":"AND(R75,S75)","v":false},null,null,{"$f":"ROW(A67)","v":67},null,null,null,null,null,null,null,null,null,null,null,null,null,null,null,null,null,null,null,79]
[43,"CE",4389,"Construction Safety (Online)",null,3,null,"Not Ready",null,null,null,null,null,null,null,null,null,null,{"$f":"TotalCreditsTaken>=AQ76","v":false},{"$f":"AND(R76,S76)","v":false},null,null,null,null,null,null,null,null,null,null,null,null,null,null,null,null,null,null,null,null,null,null,79]
[]
[null,"+","Requires a grade of C or better",null,"Total Credits",{"$f":"SUM(INDIRECT(F82):INDIRECT(F83))","v":120}]
[null,null,null,null,"Passed Credits",{"$f":"SUMIF(INDIRECT(G82):INDIRECT(G83),\"<>\",(INDIRECT(F82):INDIRECT(F83)))","v":0}]
[]
[]
[null,null,null,null,null,{"$f":"ADDRESS(MATCH(1,A:A,0),COLUMN(),4)","v":"F9"},{"$f":"ADDRESS(MATCH(1,A:A,0),COLUMN(),4)","v":"G9"}]
[null,null,null,null,null,{"$f":"ADDRESS(MATCH(256,A:A,1),COLUMN(),4)","v":"F76"},{"$f":"ADDRESS(MATCH(256,A:A,1),COLUMN(),4)","v":"G76"}]

{"sheet":"Recommendations","index":1,"n_rows":6,"n_cols":3,"rows_kept":6,"cut":false,"hidden":false,"merged":[]}
["Priority","Course","Justification"]
[1,"UNV1301 Foundations of Engineering","To complete number of credits"]
[2,"GEOL1211 Principles of Earth Sciences","To complete number of credits"]
[3,"GEOL1111 Principles of Earth Sciences Lab","Is a corequisite with GEOL1211"]
[4,"RWS1301 Rhetoric and Composition I","Is a prerequisite for other courses"]
[5,"HIST1301 History of US to 1865","Is a prerequisite for other courses"]

{"sheet":"Instructions","index":2,"n_rows":1,"n_cols":1,"rows_kept":1,"cut":false,"hidden":false,"merged":[[0,0,52,9]]}
["It is very important that you “Enable Macros” when you open this worksheet for the tool to work.  Follow the appropriate documentation based on the Excel version and operating system in your computer.\n\nThe purpose of this Excel sheet is to help you determine which classes you need or can take during the next academic period.  This is not an official document.\n\nAll boxes that require your input are highlighted in light gray.  Enter your Name and ID at the top of the page. On the row below enter the period you are registering for and the number of credits you want to take.  For Freshman students it is important that you select your Calculus Ready Status from the list since it will define the courses you can take during your first semester.\n\nBefore the next registration period starts, in the “Grades” column enter the grades for all the courses you have taken and obtained a passing grade.  These should include courses previously taken and courses that have officially been transferred from other institutions.  Because the registration period usually starts in the middle of a semester, for courses you are currently taking enter the passing grades you expect to obtain in them.  For the elective courses you first must select which course you have taken before entering the grade.  It is very important that for all the electives you register in the “allowed” courses since they are the only ones that count towards your degree.\n\nAs you enter these grades, the “Status” column will indicate which courses you have been “Credited” for, which courses you “Can Take” in the following academic period and which courses you are “Not Ready” to take because you have not satisfied all the requirements.  The courses you can register for are those labeled as “Can Take” and are highlighted in varied shades of green.  It is highly recommended that the courses you take next be selected from the top of these courses and are highlighted in dark green.\n\nThe column next to the “Status” column will show a green checkbox “ü” on the courses the tool is recommending you take.  This recommendation is based on which courses are in critical paths, which are prerequisites to others, which courses are being offered during the period you selected and the number of credits you want to take.  More information for each course about prerequisites, critical paths and when courses are offered can be found in the “Prereq. Flag”, “Critical Path” and “Available” columns respectively which are described below.  It is highly re commended that you follow this recommendation as close as possible to smoothly move through the degree plan and graduate on time.  You can click on the green button showing the actual number of credits being recommended to get the list of courses as well as a justification for the recommendation.  The recommendation is also saved to the “Recommendations” worksheet.\n\nThe “Prereq. Flag” column highlights the prerequisites for the course currently being selected.  Courses prior to the current one that are highlighted in red are the prerequisite courses you have not taken and in green the ones you have already taken and obtained a passing grade.  Those courses highlighted with a dashed pattern are part of a list of “either-or” courses.  If the “Prereq. Flag” in the row for the currently selected course is highlighted either in green or red it indicates if the required number of credits have been accumulated or not.  In this case the required number of credits will also be shown together with the actual accumulated number of credits.  Courses that are corequisites to the current course will be highlighted in purple with a dashed pattern. For courses after the one selected, the “Prereq. Flag” column will highlight those courses for which the current course is a prerequisite.  These courses will be highlighted in green if they satisfy all prerequisites and can be taken and in red if they cannot be taken yet. \n\nThe “Critical Path” columns identify courses that are very important for you to keep an eye on.  The list of courses in each of these columns are important because each of them is a prerequisite for the following course in the list or because they have special scheduling requirements.  When you select a course that is a member of one of these critical paths, the entire list of courses will be highlighted in yellow to remind you of the importance of those courses.\n\nThe “Available” column indicates in green or red the period each course is or is not being offered in the “F (fall)”, “S (spring)” and “S (summer).”  The information provided in this column is only for the courses offered by the Department of Civil Engineering.  Online courses offered on a “Carrousel” schedule will have a link to the yearly schedule. For other courses consult the appropriate department’s schedule.  Also note that courses offered in the summer vary depending on the availability of resources. Check in Goldmine for the actual summer courses being offered.\n\nIf you do not obtain the grades you were expecting for the courses you were taking at the time of registration, make sure to update the worksheet and add/drop courses from your class schedule if needed.\n"]

{"sheet":"Lists","index":3,"n_rows":17,"n_cols":8,"rows_kept":17,"cut":false,"hidden":true,"merged":[]}
["Grades1","Grades2","Grade3","CalculusReadyStatus","COMM","ART","Humanities","Periods"]
[null,null,"No","Ready to Take Calculus I",null,null,null,"Fall"]
["A","A","Yes","Will Take Precalculus Next Period","COMM 1301 Public Speaking","ART 1300 Art Appreciation","CHIC 2302 Latina/o Presence in the U.S.","Spring"]
["B","B",null,"Not Ready to Take Calculus I","COMM 1302 Business and Professional Communication","ARTH 1305 History of Art I","ENGL 2311 English Literature  ","Summer"]
["C","C",null,null,null,"ARTH 1306 History of Art II","ENGL 2312 English Literature  "]
["D","S",null,null,null,"DANC 1304 Dance Appreciation","ENGL 2313 Intro. to America Fiction  "]
["S","TA",null,null,null,"FILM 1390 Intro-Art of Motion Pict.","ENGL 2314 Intro. to America Drama "]
["TA","TB",null,null,null,"MUSL 1324 Music Appreciation","ENGL 2318 Intro. to American Poetry  "]
["TB","TC",null,null,null,"MUSL 1327 Jazz to Rock","FREN 2322 The Making of the \"Other\" Americas "]
["TC",null,null,null,null,"MUSL 2321 Music, Culture and Society","HIST 2301 World History to 1500  "]
["TD",null,null,null,null,"THEA 1313 Introduction to Theatre","HIST 2302 World History since 1500  "]
[null,null,null,null,null,null,"PHIL 1301 Introduction to Philosophy  "]
[null,null,null,null,null,null,"PHIL 2306 Ethics  "]
[null,null,null,null,null,null,"RS 1301 Introduction to Religious Studies  "]
[null,null,null,null,null,null,"SPAN 2340 Seeing and Naming: Conversations "]
[null,null,null,null,null,null,"WS 2300 Intro. to Women's Studies  "]
[null,null,null,null,null,null,"WS 2350 Global Feminism  "]